Cogmind - Beta 15 @@@ ROGUE MODE // 2025.05.07 @ 23:36:41 Player: Geo Result: Destroyed by 8R-AWN with 8R-AWN's Boregun Performance ------------- Evolutions (0) 0 Regions Visited (3) 600 Robots Destroyed (22) 110 Value Destroyed (474) 474 Prototype IDs (3) 60 Alien Tech Used (0) 0 Bonus (300) 300 TOTAL SCORE: 1544 Bonus ------- Aligned with FarCom 300 Cogmind --------- Core Integrity 0/250 Matter 138/300 Energy 280/280 System Corruption 6% Temperature Cool (0) Movement Treading (160) Location -10/Exiles Parts ------- > --- POWER (1) -------- Cooled Ion Engine > --- PROPULSION (2) --- Light Treads Potential Leg > --- UTILITY (2) ------ Seismic Detector > --- WEAPON (2) ------- Heavy Assault Rifle Heavy Assault Rifle > --- INVENTORY (5) ---- Potential Leg Latent Energy Streamer Heavy Hammer Peak State ------------ > --- POWER ------------ Cooled Ion Engine > --- PROPULSION ------- Light Treads Wheel > --- UTILITY ---------- Huge Storage Unit Seismic Detector > --- WEAPON ----------- Latent Energy Streamer > --- INVENTORY -------- Ion Engine Cooled Ion Engine Cooled Ion Engine Light Treads Light Treads Light Treads Wheel Huge Storage Unit Medium Matter Pod Machine Analyzer Signal Interpreter Targeting Computer Particle Cannon Heavy Assault Rifle Heavy Assault Rifle Heavy Assault Rifle Heavy Assault Rifle Grenade Launcher Heavy Hammer Heavy Hammer Deploy-a-Sentry Deploy-a-Sentry Deploy-a-Sentry [Rating: 22] Favorites ----------- Power Ion Engine Engine Ion Engine Propulsion Light Treads Treads Light Treads Leg Potential Leg Wheel Wheel Utility Seismic Detector Device Seismic Detector Storage Huge Storage Unit Weapon Small Laser Energy Gun Small Laser Energy Cannon Particle Cannon Ballistic Gun Light Assault Rifle Launcher Grenade Launcher Build | -11 -10 -10 -10 ------- Run | Yrd Mat Min Exi Slots Evolved . | . . . . Power . | . . . . Propulsion . | . . . . Utility . | . . . . Weapon . | . . . . Parts Attached 27 | 2 16 . 9 Power 5 | . 5 . . Engine 5 | . 5 . . Core . | . . . . Reactor . | . . . . Propulsion 8 | 2 2 . 4 Treads 6 | 2 1 . 3 Leg 1 | . . . 1 Wheel 1 | . 1 . . Hover . | . . . . Flight . | . . . . Utility 2 | . 2 . . Device 1 | . 1 . . Storage 1 | . 1 . . Processor . | . . . . Hackware . | . . . . Protection . | . . . . Artifact . | . . . . Weapon 12 | . 7 . 5 Energy Gun 3 | . 3 . . Energy Cannon 3 | . 2 . 1 Ballistic Gun 5 | . 2 . 3 Ballistic Cannon . | . . . . Launcher 1 | . . . 1 Special Weapon . | . . . . Impact Weapon . | . . . . Slashing Weapon . | . . . . Piercing Weapon . | . . . . Special Melee Weapon . | . . . . Unidentified Prototypes 3 | . 1 . 2 Parts Lost 8 | . 5 . 3 Power 2 | . 2 . . Propulsion 4 | . 1 . 3 Utility . | . . . . Weapon 2 | . 2 . . Highest Loss Streak 3 | . 3 . 3 To Critical Strikes 3 | . . . 3 Average Backups 13 | 5 10 22 17 Power 1 | 1 1 3 1 Propulsion 2 | 3 2 4 4 Utility 4 | . 4 6 3 Weapon 4 | 1 2 9 7 Tool/Special . | . . . . Unused Backups 25 | . 9 2 14 Power 3 | . 1 . 2 Propulsion 6 | . 4 . 2 Utility 7 | . . 2 5 Weapon 9 | . 4 . 5 Tool/Special . | . . . . Average Slot Usage (%) 90 | . 99 96 74 Engine 13 | . 13 14 14 Treads 20 | . 22 14 17 Wheel 7 | . 5 14 10 Device 13 | . 13 14 14 Storage 12 | . 14 14 10 Energy Gun 8 | . 14 . . Energy Cannon 6 | . 8 24 . Ballistic Gun 4 | . 4 . 6 Peak Build Rating 22 | 6 14 14 22 Average Rating 10 | 6 8 13 13 On Entrance 9 | 6 6 14 12 Naked Turns . | . . . . Heaviest Build 97 | 11 97 97 89 Greatest Support 40 | 40 40 10 40 Greatest Overweight (x) 9 | . 9 9 8 Average Overweight (x) 5 | . 5 9 6 Largest Inventory Capacity 25 | 8 25 25 25 Average Capacity 21 | 8 21 25 19 Most Carried 25 | 6 24 23 25 Average Carried 14 | 5 10 22 18 Final Capacity 25 | 8 25 25 5 Final Carried 23 | 6 23 22 3 Class Distribution -------------------- 94% | Mutant 5% | Scavenger-Mutant Dominant Class ---------------- Mutant | -10/Materials Mutant | -10/Mines Mutant | -10/Exiles Resources | -11 -10 -10 -10 ----------- Run | Yrd Mat Min Exi Matter Collected 619 | 163 240 . 216 Remotely . | . . . . Salvage Created 673 | . 662 . 11 Parts 43 | . 43 . . Haulers Intercepted 2 | . 2 . . Recyclers Shooed 6 | . 6 . . Parts Field Recycled . | . . . . Retrieved Matter . | . . . . Parts Self-Destructed . | . . . . Prevented . | . . . . Kills | -11 -10 -10 -10 ------- Run | Yrd Mat Min Exi Combat Hostiles Destroyed 21 | . 14 . 7 Melee 1 | . 1 . . Guns 13 | . 13 . . AOE 7 | . . . 7 Classes Destroyed 8 | . 7 . 1 Worker 2 | . 2 . . Hauler 2 | . 2 . . Recycler 1 | . 1 . . Mechanic 1 | . 1 . . Watcher 2 | . 2 . . Swarmer 3 | . 3 . . Grunt 11 | . 11 . . Assembled 7 | . . . 7 Best Kill Streak 7 | . 5 . 7 Combat Bots Only 7 | . 4 . 7 Max Kills in Single Turn 3 | . 1 . 3 Gunslinging . | . . . . Exploded 3 | . . . 3 Melee 1 | . 1 . . Uniques/NPCs Destroyed . | . . . . Combat | -11 -10 -10 -10 -------- Run | Yrd Mat Min Exi Hostile Shots Fired 152 | . 95 . 57 Missed 38 | . 24 . 14 Hits 114 | . 71 . 43 Projectile 114 | . 71 . 43 Critical Strikes 22 | . . . 22 Damage Taken 1621 | . 824 . 797 Core 264 | . 99 . 165 Absorbed by Shields . | . . . . Core Remaining (%) 100 | 100 . . . Volleys Fired 116 | . 89 . 27 Largest 2 | . 2 . 2 Hottest 90 | . 90 . 60 Shots Fired 213 | . 167 . 46 Gun 193 | . 154 . 39 Cannon 15 | . 13 . 2 Launcher 5 | . . . 5 Special . | . . . . Kinetic 87 | . 48 . 39 Thermal 116 | . 116 . . Explosive 5 | . . . 5 Electromagnetic 5 | . 3 . 2 Robot Hit Streak 16 | . 16 . 12 Robot Miss Streak 5 | . 5 . 2 Penetration Max . | . . . . Secondary Targets 3 | . 3 . . Max Gunslinging Chain 1 | . 1 . . Shots Hit Robots 144 | . 107 . 37 Core Hits 62 | . 40 . 22 Critical Kills . | . . . . Critical Parts Destroyed . | . . . . Critical Strikes 2 | . 2 . . Burn 2 | . 2 . . Melee Attacks . | . . . . Impact . | . . . . Slashing . | . . . . Piercing . | . . . . Sneak Attacks . | . . . . Combat Hostiles . | . . . . Follow-up Attacks . | . . . . Damage Inflicted 2213 | . 1336 . 877 Guns 1646 | . 1139 . 507 Cannons 123 | . 123 . . Explosions 370 | . . . 370 Melee . | . . . . Ramming 74 | . 74 . . Kinetic 746 | . 239 . 507 Thermal 1011 | . 1011 . . Explosive 358 | . . . 358 Electromagnetic 24 | . 12 . 12 Impact . | . . . . Slashing . | . . . . Piercing . | . . . . Highest Corruption 6 | . 2 2 6 Average Corruption 2 | . 1 2 2 Corruption Purged . | . . . . Corruption Blocked . | . . . . Effects 17 | . 4 2 11 Message Errors 7 | . 2 . 5 Matter Fused 4 | . . 1 3 Heat Flow Errors 2 | . . 1 1 Energy Discharges 1 | . . . 1 Misfires 2 | . 2 . . Weapon Failures 1 | . . . 1 Overload Shots . | . . . . Overflow Damage 3 | . 3 . . Projectiles 3 | . 3 . . Explosions . | . . . . Melee . | . . . . Knockbacks . | . . . . Impact . | . . . . Kinetic . | . . . . Secondary . | . . . . Self-Inflicted Damage 25 | . 14 . 11 Shots 1 | . . . 1 Rammed 15 | . 15 . . Targets Rammed 17 | . 17 . . Kicked . | . . . . Crushed 2 | . 2 . . Highest Temperature 258 | . 258 185 171 Average Temperature 69 | . 69 97 58 Received Heat Transfer 413 | . 393 . 20 Effects 3 | . 3 . . Interference 3 | . 3 . . Siege Activations . | . . . . Martial Activations . | . . . . Shielding Activations . | . . . . Robots Disrupted . | . . . . Combat Hostiles . | . . . . Robots Corrupted . | . . . . Combat Hostiles . | . . . . Parts Fried . | . . . . Impact Corruptions . | . . . . Robots Melted . | . . . . Combat Hostiles . | . . . . Parts Melted 6 | . 6 . . Heat Transferred 2737 | . 2737 . . Parts Sabotaged . | . . . . Parts Stolen . | . . . . Parts Stripped . | . . . . Power Chain Reactions . | . . . . Latent Energy Used 258 | . . . 258 LE Corruption 4 | . . . 4 Alert | -11 -10 -10 -10 ------- Run | Yrd Mat Min Exi Maximum Alert Level . | . . . . Low Security (%) 100 | 100 100 100 . Level 1 . | . . . . Level 2 . | . . . . Level 3 . | . . . . Level 4 . | . . . . Level 5 . | . . . . High Security . | . . . . Max Security . | . . . . Peak Influence 95 | . 95 . . Initial . | . . . . Average 20 | . 22 . . Influence Increases 389 | . 389 . . Destroy 0b10 Robot/C 280 | . 280 . . Destroy 0b10 Robot/NC 40 | . 40 . . Destroy Leader 68 | . 68 . . Destroy Structure 1 | . 1 . . Influence Decreases 389 | . 389 . . Time Decay 340 | . 340 . . Lost Part 49 | . 49 . . Squads Dispatched 5 | . 5 . . Investigation 2 | . 2 . . Extermination . | . . . . Reinforcement 3 | . 3 . . Assault . | . . . . Garrison . | . . . . Intercept . | . . . . Searches Triggered . | . . . . Construction Impeded . | . . . . Haulers Reinforced . | . . . . Active Scanning Responses . | . . . . Cargo Convoy Interrupts . | . . . . Stealth | -11 -10 -10 -10 --------- Run | Yrd Mat Min Exi Distress Signals 2 | . 2 . . Communications Jammed . | . . . . Distress Signals . | . . . . Times Spotted 28 | . 20 . 8 Peak Tracking Total 9 | . 4 . 9 Tactical Retreats . | . . . . Traps | -11 -10 -10 -10 ------- Run | Yrd Mat Min Exi Traps Triggered 3 | . 3 . . Indirectly . | . . . . Trap Hack Attempts . | . . . . Triggered . | . . . . Disarmed . | . . . . Reprogrammed . | . . . . Reused . | . . . . Traps Extracted . | . . . . Installed . | . . . . Triggered . | . . . . Machines | -11 -10 -10 -10 ---------- Run | Yrd Mat Min Exi Machines Disabled 2 | . . . 2 Max in Single Turn 1 | . . . 1 Machines Repaired . | . . . . Machines Dismantled . | . . . . Machines Sabotaged . | . . . . Overloaded Fab Kills . | . . . . Hacking | -11 -10 -10 -10 --------- Run | Yrd Mat Min Exi Machines Accessed 1 | . 1 . . Terminals . | . . . . Fabricators . | . . . . Repair Stations . | . . . . Recycling Units 1 | . 1 . . Scanalyzers . | . . . . Garrison Access . | . . . . Total Hacks 2 | . 2 . . Successful 2 | . 2 . . Failed . | . . . . Catastrophic . | . . . . Database Lockouts . | . . . . Manual 2 | . 1 . 1 Terminals . | . . . . Fabricators . | . . . . Repair Stations . | . . . . Recycling Units 2 | . 2 . . Scanalyzers . | . . . . Garrison Access . | . . . . Terminal Hacks . | . . . . Fabricator Hacks . | . . . . Repair Station Hacks . | . . . . Recycling Unit Hacks 1 | . 1 . . Report Inventory 1 | . 1 . . Scanalyzer . | . . . . Garrison Access Hacks . | . . . . Unauthorized Hacks 1 | . 1 . . Terminals . | . . . . Fabricators . | . . . . Repair Stations . | . . . . Recycling Units 1 | . 1 . . Reject 1 | . 1 . . Scanalyzers . | . . . . Garrison Access . | . . . . Data Cores Recovered . | . . . . Used . | . . . . Hacking Detections 1 | . 1 . . Full Trace Events . | . . . . Feedback Events . | . . . . Feedback Blocked . | . . . . Robot Schematics Acquired . | . . . . Robots Built . | . . . . Authchips . | . . . . Time . | . . . . Total Robot Build Rating . | . . . . Part Schematics Acquired . | . . . . Parts Built . | . . . . Authchips . | . . . . Time . | . . . . Total Part Build Rating . | . . . . Parts Repaired . | . . . . Time . | . . . . Parts Recycled . | . . . . Recycled Matter . | . . . . Retrieved Matter . | . . . . Retrieved Components . | . . . . Parts Scanalyzed . | . . . . Part Schematics Acquired . | . . . . Parts Damaged . | . . . . Bothacking | -11 -10 -10 -10 ------------ Run | Yrd Mat Min Exi Used RIF Installer . | . . . . Robots Hacked . | . . . . Non-combat . | . . . . Combat . | . . . . Robot Hacks Applied . | . . . . Relay Couplers Released . | . . . . Fabnet Peak Effective % . | . . . . Robots Rewired . | . . . . Allies Hacked . | . . . . Hacks Repelled . | . . . . Allies | -11 -10 -10 -10 -------- Run | Yrd Mat Min Exi Total Allies . | . . . . Largest Group . | . . . . Highest-Rated Group . | . . . . Highest-Rated Ally . | . . . . Total Orders . | . . . . Ally Attacks 7 | . . . 7 Total Damage 392 | . . . 392 Kills . | . . . . Allies Corrupted . | . . . . Allies Melted . | . . . . Turrets Deployed 3 | . . . 3 Intel | -11 -10 -10 -10 ------- Run | Yrd Mat Min Exi Active Infowar (turns) 2510 | . 1479 137 894 Seismic 2510 | . 1479 137 894 Robot Analysis Total . | . . . . Derelict Logs Recovered 1 | . . 1 . Drone Launches . | . . . . Drone Recoveries . | . . . . Exploration | -11 -10 -10 -10 ------------- Run | Yrd Mat Min Exi Turns Passed 2547 | 5 1511 137 894 Spaces Moved 941 | 1 483 63 394 Core . | . . . . Treads 307 | 1 230 . 76 Legs . | . . . . Wheels 634 | . 253 63 318 Hover . | . . . . Flight . | . . . . Fastest Speed 160 | 160 160 215 160 Average Speed 215 | 160 235 215 192 Slowest Speed 320 | 160 320 215 200 Overloaded Moves . | . . . . Propulsion Burnouts . | . . . . Robots Hopped . | . . . . Potential Cave-ins . | . . . . Cave-ins Triggered . | . . . . Exploration Rate (%) 40 | 2 75 19 67 Regions Visited 3 Branch Regions 2 Pre-discovered Areas . | . . . . Known Exits Taken . | . . . . Unknown Exits Taken 3 | 1 1 1 . Scrap Searched . | . . . . Spaces Dug . | . . . . Terrain Destroyed 44 | . . . 44 Melee . | . . . . Projectile . | . . . . AOE 44 | . . . 44 Terrain Rammed . | . . . . Walls Destroyed . | . . . . Machines Disabled . | . . . . Actions | -11 -10 -10 -10 --------- Run | Yrd Mat Min Exi Total 1245 | 4 680 67 494 Wait 50 | . 28 2 20 Move 938 | . 482 62 394 Hop . | . . . . Pick Up 52 | 1 32 . 19 Fast Attach 8 | . 5 . 3 Attach 10 | . 6 . 4 Detach 3 | . . 1 2 Swap 11 | 2 5 . 4 Drop 40 | 1 16 2 21 Fire 116 | . 89 . 27 Melee . | . . . . Ram 1 | . 1 . . Kick . | . . . . Crush 16 | . 16 . . Escape Stasis . | . . . . Rewire . | . . . . Trap . | . . . . Miscellaneous . | . . . . Route ------- -11/Scrapyard -10/Materials (discovered 3 exits: [*Mat x2] / [*Min]) -10/Mines -10/Exiles History --------- Turn | Location | Event 6 | -11/Scrapyard | Discovered new exit (range 0) 6 | -11/Scrapyard | Entered Materials 305 | -10/Materials | Build established: Mutant 311 | -10/Materials | Lost 3 parts (1p1n1w) 531 | -10/Materials | Discovered new exit (range 5) 967 | -10/Materials | Discovered new exit (range 12) 1356 | -10/Materials | Discovered new exit (range 8) 1517 | -10/Materials | Entered Mines 1611 | -10/Mines | Learned Materials security intel 1641 | -10/Mines | Deemed a non-threat by the Exiles lab entrance 1644 | -10/Mines | Discovered new exit (range 5) 1654 | -10/Mines | Entered Exiles 1703 | -10/Exiles | Met 8R-AWN 1737 | -10/Exiles | Met EX-HEX 1791 | -10/Exiles | Met EX-BIN 1819 | -10/Exiles | Aligned with FarCom system 1821 | -10/Exiles | Given EX-Vault access code 1873 | -10/Exiles | Opened EX-Vault 1886 | -10/Exiles | Found Deploy-a-Sentry 1889 | -10/Exiles | Found Deploy-a-Sentry 1892 | -10/Exiles | Found Deploy-a-Sentry 1905 | -10/Exiles | Found Prototype Energy Cannon 1905 | -10/Exiles | Identified Latent Energy Streamer 1911 | -10/Exiles | Found Prototype Leg 1915 | -10/Exiles | Found Prototype Leg 1956 | -10/Exiles | Warned to stay clear of 0b10 Research branches 2022 | -10/Exiles | Met EX-DEC 2386 | -10/Exiles | Attacked by the Exiles 2432 | -10/Exiles | DAS Turret deployed 2438 | -10/Exiles | DAS Turret deployed 2438 | -10/Exiles | Destroyed 7 combat bots 2443 | -10/Exiles | DAS Turret deployed 2492 | -10/Exiles | Core integrity fell below 50% 2509 | -10/Exiles | Identified Potential Leg (x2) 2514 | -10/Exiles | Core integrity fell below 20% 2517 | -10/Exiles | Lost 3 allies 2546 | -10/Exiles | Lost 3 parts (3n) 2548 | -10/Exiles | Destroyed by 8R-AWN with 8R-AWN's Boregun Last Messages --------------- 02513_ HV Slug penetrates Earth. 02515_ Penetrated by HV Slug. 02515_ Critical hit (Destroy). 02515_ Lgt. Treads destroyed. 02515_ HV Slug penetrates Earth. 02515_ Penetrated by HV Slug. 02521_ 4S9:LGCIH02 ZWDB4FAF8LR6S 02522_ HV Slug penetrates Wall. 02522_ HV Slug penetrates Earth. 02525_ Penetrated by HV Slug. 02525_ HV Slug penetrates Wall. 02530_ Penetrated by HV Slug. 02539_ HV Slug penetrates Earth. 02539_ Penetrated by HV Slug. 02539_ HV Slug penetrates Earth. 02544_ Q71YHCRIRK4 /L288XH PP3ME=NG 02544_ HV Slug penetrates Earth. 02544_ Penetrated by HV Slug. 02544_ HV Slug penetrates Earth. 02548_ Penetrated by HV Slug. Map ----- +----------------------------------------------------+ | ?????????????????????????????????????????????????? | | ?????????????????????????????????????????????????? | | ?????????????????????????????????????????????????? | | ?????????????????????????????????????????????????? | | ?????????????????????????????????????????????????? | | ?????????????????????????????????????????????????? | | ?????????????????????????????????????????????????? | | ?????????????????????????????????????????????????? | | ?????????????????????????????????????????????????" | | ?????????????????????????????????????????????????" | | ????????????????????????????????????????????????#" | | ????????????????????????????????????????????????#" | | ?????????????????????####???????????????????????#" | | ????????????????????? ???????????????????????#" | | ?????????????????????# ?##????????????????????## | | ?????????????????????? # ? #?????????????????????? | | ?????????????????????? # #?????????????????????? | | ?????????????????????? #?????????????????????? | | ??????????????????????#;;;;###???????????????????? | | ??????????????????????#;!!!!"#???????????????????? | | ???????????? #????????#; !"#???????????????????? | | ??????????? ????###;]!% "#???????????????????? | | ??????????? ???? ;; % ""#?????????????#?????? | | ????????? #???# / =""#???????????? ""???? | | ????????# ?##[!*!""#????????????" """??? | | ?????????# #" *@[###????????????" ??? | | ????????????# = #?????????????"" ??? | | ?????????????### ;#????????????"" "??? | | ???????????????### ##??????????? ""??? | | ????????????????#" %! ##???????????" "???? | | ???????????????""" ?????# #???? | | ??????????? "## #??### ###?# | | ??????????? "? g ###X# #"### | | ??????????? #?# """" | | ???????????!""""""##?? "" " | | ????????????######????# " | | ??????????????????????# | | ??????????????????????###### # | | ????????????????????????????##### | | ????????????????????????????????## | | ?????????????????????????????????##" | | ??????????????????????????????????#""" | | ?????????????????????????????????##" | | ?????????????????????????????????#"" | | ????????????????????????????????##""" "" | | ????????????????????????????????#""" """ | | ????????????????????????????????#""" "" | | ????????????????????????????????#"" # | | ????????????????????????????????#""" | | ????????????????????????????????#"" | +----------------------------------------------------+ Best States ------------- Heat Dissipation 25 Energy Generation 14 Energy Capacity 280 Matter Stores 300 Matter Capacity 300 Sight Range 16 Terrain Scan Density 10 Evasion (%) 40 Recoil Reduction 2 Item Schematics ----------------- None Robot Schematics ------------------ None Fabricated ------------ Nothing Repaired ---------- Nothing Alien Tech Used ----------------- None Achievements -------------- None Challenges ------------ None Game ------ Seed GyrokineticElectronCasing Manual? 0 Play Time 00:17:10 Cumulative 478.2 hours Start 2025.05.07 @ 23:20:17 End 2025.05.07 @ 23:36:41 Sessions 1 Manual Loads 0 Difficulty Rogue Special Mode None Game No. 530 Rogue 530 Adventurer 0 Explorer 0 Win Type - Total 14 Types 9/0/4/1/0/0/0/0/0/0 Lore% 60 Gallery% 77 Achievement% 82 Wizard Run 0 Options --------- Layout 0 ASCII 0 Keyboard 0 Movement Numpad Keybinds 0 Fullscreen 1 Font 18/SmallcapsGlow Map View 76x50 Zoom Use 0% Tactical HUD 1 Map Filters NONE Filters NONE Steam 1 RUN: f0a247da-802e-4745-b2f5-47999e1b35f7